fUST/lending_fUST_20250923
["ID","MTS","AMOUNT","RATE_DAILY","PERIOD"]
[387107489,1758580251623,-1666.86,0.00020273,2]
[387107490,1758580251632,-480.0,0.00020273,2]
[387107491,1758580251641,-480.0,0.00020273,2]
[387107492,1758580251651,-558.4,0.00020273,2]
[387107493,1758580251660,-480.0,0.00020273,2]
[387107494,1758580251670,-480.0,0.00020273,2]
[387107495,1758580251679,-165.32,0.00020273,2]
[387107496,1758580251688,-480.0,0.00020273,2]
[387107497,1758580251698,-480.0,0.00020273,2]
[387107498,1758580251707,-480.0,0.00020273,2]
[387107499,1758580251716,-718.43,0.00020273,2]
[387107500,1758580251726,-480.0,0.00020273,2]
[387107501,1758580251735,-496.78,0.00020273,2]
[387107502,1758580251744,-480.0,0.00020273,2]
[387107503,1758580251753,-828.4,0.00020273,2]
[387107504,1758580251762,-480.0,0.00020273,2]
[387107505,1758580251771,-480.0,0.00020273,2]
[387107506,1758580251780,-480.0,0.00020273,2]
[387107507,1758580251789,-775.4,0.00020273,2]
[387107508,1758580251799,-480.0,0.00020273,2]
[387107509,1758580251809,-480.0,0.00020273,2]
[387107510,1758580251818,-838.26,0.00020273,2]
[387107511,1758580251827,-480.0,0.00020273,2]
[387107512,1758580251837,-1737.25,0.00020273,2]
[387107513,1758580251846,-480.0,0.00020273,2]
[387107514,1758580251856,-480.0,0.00020273,2]
[387107515,1758580251866,-789.77,0.00020273,2]
[387107516,1758580251875,-743.13,0.00020273,2]
[387107517,1758580251885,-500.58,0.00020273,2]
[387107518,1758580251894,-480.0,0.00020273,2]
[387107519,1758580251906,-480.0,0.00020273,2]
[387107520,1758580251916,-480.0,0.00020273,2]
[387107521,1758580251926,-480.0,0.00020273,2]
[387107522,1758580251935,-480.0,0.00020273,2]
[387107523,1758580251945,-1014.46,0.00020273,2]
[387107524,1758580251955,-500.0,0.00020274,2]
[387107525,1758580251964,-151.0,0.00020274,2]
[387107526,1758580251974,-151.0,0.00020274,2]
[387107527,1758580251984,-3051.64146281,0.00020311,2]
[387107528,1758580251995,-328.0,0.00020341,2]
[387107529,1758580252004,-518.42923352,0.0002035,2]
[387107530,1758580252013,-596.12078214,0.0002035,2]
[387107531,1758580252022,-557.45315853,0.0002035,2]
[387107532,1758580252032,-270.37203795,0.0002041,2]
[387107533,1758580252043,-775.32,0.00020438,3]
[387107534,1758580252053,-339.94774191,0.00020462,2]
[387107535,1758580252063,-1680.0,0.00020469,2]
[387107536,1758580252073,-168.58402946,0.00020524,2]
[387107537,1758580252082,-544.46,0.00020538,3]
[387107538,1758580252091,-154.040103,0.00020544,2]
[387107539,1758580252101,-200.0,0.00020546,2]
[387107540,1758580252112,-151.0,0.00020547,2]
[387107541,1758580252122,-152.189506,0.00020547,2]
[387107542,1758580252131,-214.655096,0.00020547,2]
[387107543,1758580252143,-480.0,0.00020547,2]
[387107544,1758580252155,-480.0,0.00020547,2]
[387107545,1758580252169,-480.0,0.00020547,2]
[387107546,1758580252178,-480.0,0.00020547,2]
[387107547,1758580252187,-480.0,0.00020547,2]
[387107548,1758580252196,-158.38125901,0.00020547,2]
[387107549,1758580252206,-536.44,0.00020547,2]
[387107550,1758580252215,-6296.56,0.00020547,2]
[387107551,1758580252224,-468.72369229,0.00020547,2]
[387107552,1758580252235,-480.0,0.00020547,2]
[387107553,1758580252244,-480.0,0.00020547,2]
[387107554,1758580252253,-3417.59,0.00020547,2]
[387107555,1758580252262,-687.18,0.00020547,2]
[387107556,1758580252272,-1262.19,0.00020547,2]
[387107557,1758580252283,-283.54,0.00020547,2]
[387107558,1758580252293,-370.77,0.00020547,2]
[387107559,1758580252303,-868.22,0.00020547,2]
[387107560,1758580252312,-1666.86,0.00020547,2]
[387107561,1758580252322,-480.0,0.00020547,2]
[387107562,1758580252331,-558.4,0.00020547,2]
[387107563,1758580252340,-480.0,0.00020547,2]
[387107564,1758580252350,-480.0,0.00020547,2]
[387107565,1758580252359,-480.0,0.00020547,2]
[387107566,1758580252368,-480.0,0.00020547,2]
[387107567,1758580252377,-480.0,0.00020547,2]
[387107568,1758580252386,-718.43,0.00020547,2]
[387107569,1758580252395,-480.0,0.00020547,2]
[387107570,1758580252405,-496.78,0.00020547,2]
[387107571,1758580252414,-480.0,0.00020547,2]
[387107572,1758580252425,-828.4,0.00020547,2]
[387107573,1758580252434,-258.38,0.00020547,2]
[387107574,1758580252445,-480.0,0.00020547,2]
[387107575,1758580252455,-480.0,0.00020547,2]
[387107576,1758580252466,-775.4,0.00020547,2]
[387107577,1758580252478,-480.0,0.00020547,2]
[387107578,1758580252488,-480.0,0.00020547,2]
[387107579,1758580252498,-838.26,0.00020547,2]
[387107580,1758580252508,-480.0,0.00020547,2]
[387107581,1758580252518,-1737.25,0.00020547,2]
[387107582,1758580252528,-480.0,0.00020547,2]
[387107583,1758580252538,-480.0,0.00020547,2]
[387107584,1758580252548,-789.77,0.00020547,2]
[387107585,1758580252558,-743.13,0.00020547,2]
[387107586,1758580252568,-500.58,0.00020547,2]
[387107587,1758580252578,-480.0,0.00020547,2]
[387107588,1758580252588,-480.0,0.00020547,2]
[387107589,1758580252598,-480.0,0.00020547,2]
[387107590,1758580252609,-480.0,0.00020547,2]
[387107591,1758580252618,-1014.46,0.00020547,2]
[387107592,1758580252627,-500.0,0.00020548,2]
[387107593,1758580252637,-980.93670822,0.00020568,2]
[387107594,1758580252647,-1500.0,0.00020568,2]
[387107595,1758580252656,-1500.0,0.00020568,2]
[387107596,1758580252665,-1500.0,0.00020568,2]
[387107597,1758580252750,-1500.0,0.00020568,2]
[387107598,1758580252760,-175.1372201,0.00020568,2]
[387107599,1758580252770,-1000.0,0.00020568,2]
[387107600,1758580252780,-1500.0,0.00020568,2]
[387107601,1758580252791,-1500.0,0.00020568,2]
[387107602,1758580252803,-1500.0,0.00020568,2]
[387107603,1758580252814,-1500.0,0.00020568,2]
[387107604,1758580252823,-505.14210339,0.00020568,2]
[387107605,1758580252834,-729.78837758,0.00020568,2]
[387107606,1758580252843,-1500.0,0.00020568,2]
[387107607,1758580252852,-1500.0,0.00020568,2]
[387107608,1758580252861,-1500.0,0.00020568,2]
[387107609,1758580252871,-151.0,0.000206,4]
[387107610,1758580252880,-151.0,0.000206,3]
[387107611,1758580252889,-189.65192494,0.00020609,2]
[387107612,1758580252898,-978.0,0.00020676,2]
[387107613,1758580252908,-2159.0,0.00020676,2]
[387107614,1758580252917,-634.0,0.00020676,2]
[387107615,1758580252926,-410.0,0.00020676,2]
[387107616,1758580252936,-417.874,0.00020676,2]
[387107617,1758580252945,-420.0,0.00020779,2]
[387107618,1758580252955,-1680.0,0.0002078,2]
[387107619,1758580252965,-500.0,0.00020792,2]
[387107620,1758580252975,-440.47,0.00020792,2]
[387107621,1758580252985,-260.0,0.00020801,2]
[387107622,1758580252994,-151.0,0.00020821,2]
[387107623,1758580253005,-480.0,0.00020821,2]
[387107624,1758580253014,-662.13183928,0.00020821,2]
[387107625,1758580253024,-480.0,0.00020821,2]
[387107626,1758580253033,-480.0,0.00020821,2]
[387107627,1758580253042,-234.97364123,0.00020821,2]
[387107628,1758580253052,-938.95467034,0.00020821,2]
[387107629,1758580253061,-480.0,0.00020821,2]
[387107630,1758580253071,-480.0,0.00020821,2]
[387107631,1758580253080,-536.44,0.00020821,2]
[387107632,1758580253090,-6296.56,0.00020821,2]
[387107633,1758580253101,-480.0,0.00020821,2]
[387107634,1758580253110,-480.0,0.00020821,2]
[387107635,1758580253120,-3417.59,0.00020821,2]
[387107636,1758580253129,-687.18,0.00020821,2]
[387107637,1758580253138,-1262.19,0.00020821,2]
[387107638,1758580253148,-868.22,0.00020821,2]
[387107639,1758580253157,-1666.86,0.00020821,2]
[387107640,1758580253169,-480.0,0.00020821,2]
[387107641,1758580253178,-558.4,0.00020821,2]
[387107642,1758580253187,-480.0,0.00020821,2]
[387107643,1758580253196,-480.0,0.00020821,2]
[387107644,1758580253206,-195.02489448,0.00020821,2]
[387107645,1758580253215,-480.0,0.00020821,2]
[387107646,1758580253224,-480.0,0.00020821,2]
[387107647,1758580253233,-718.43,0.00020821,2]
[387107648,1758580253242,-480.0,0.00020821,2]
[387107649,1758580253251,-496.78,0.00020821,2]
[387107650,1758580253260,-480.0,0.00020821,2]
[387107651,1758580253271,-828.4,0.00020821,2]
[387107652,1758580253279,-480.0,0.00020821,2]
[387107653,1758580253289,-480.0,0.00020821,2]
[387107654,1758580253298,-775.4,0.00020821,2]
[387107655,1758580253307,-480.0,0.00020821,2]
[387107656,1758580253318,-332.89133732,0.00020821,2]
[387107657,1758580253327,-838.26,0.00020821,2]
[387107658,1758580253336,-1737.25,0.00020821,2]
[387107659,1758580253345,-480.0,0.00020821,2]
[387107660,1758580253354,-480.0,0.00020821,2]
[387107661,1758580253364,-480.0,0.00020821,2]
[387107662,1758580253374,-789.77,0.00020821,2]
[387107663,1758580253384,-743.13,0.00020821,2]
[387107664,1758580253393,-500.58,0.00020821,2]
[387107665,1758580253402,-480.0,0.00020821,2]
[387107666,1758580253411,-480.0,0.00020821,2]
[387107667,1758580253420,-480.0,0.00020821,2]
[387107668,1758580253429,-503.25284407,0.00020821,2]
[387107669,1758580253439,-1014.46,0.00020821,2]
[387107670,1758580253448,-500.0,0.00020822,2]
[387107671,1758580253457,-239.1556791,0.00020822,2]
[387107672,1758580253466,-151.0,0.00020822,2]
[387107673,1758580253475,-151.0,0.00020822,2]
[387107674,1758580253484,-151.0,0.00020822,2]
[387107675,1758580253494,-151.0,0.00020822,2]
[387107676,1758580253503,-291.1441014,0.00020822,2]
[387107677,1758580253512,-500.0,0.00020822,2]
[387107678,1758580253521,-2198.0,0.00020854,2]
[387107679,1758580253531,-176.96810885,0.00020893,2]
[387107680,1758580253540,-4690.11352609,0.00020972,2]
[387107681,1758580253550,-1900.0,0.00020993,2]
[387107682,1758580253559,-192.506674,0.00021,2]
[387107683,1758580253569,-585.8651041,0.00021021,2]
[387107684,1758580253579,-585.8651041,0.00021021,2]
[387107685,1758580253589,-585.8651041,0.00021021,2]
[387107686,1758580253599,-1148.4057122,0.00021021,2]
[387107687,1758580253609,-585.8651041,0.00021021,2]
[387107688,1758580253619,-526.6729221,0.00021021,2]
[387107689,1758580253628,-296.5601799,0.00021031,2]
[387107690,1758580253637,-296.5601799,0.00021031,2]
[387107691,1758580253647,-268.0108004,0.00021031,2]
[387107692,1758580253656,-480.0,0.00021095,2]
[387107693,1758580253665,-480.0,0.00021095,2]
[387107694,1758580253674,-480.0,0.00021095,2]
[387107695,1758580253683,-536.44,0.00021095,2]
[387107696,1758580253692,-6296.56,0.00021095,2]
[387107697,1758580253702,-480.0,0.00021095,2]
[387107698,1758580253711,-480.0,0.00021095,2]
[387107699,1758580253720,-3417.59,0.00021095,2]
[387107700,1758580253730,-687.18,0.00021095,2]
[387107701,1758580253739,-1262.19,0.00021095,2]
[387107702,1758580253748,-868.22,0.00021095,2]
[387107703,1758580253758,-480.0,0.00021095,2]
[387107704,1758580253767,-1666.86,0.00021095,2]
[387107705,1758580253776,-558.4,0.00021095,2]
[387107706,1758580253785,-480.0,0.00021095,2]
[387107707,1758580253794,-480.0,0.00021095,2]
[387107708,1758580253804,-480.0,0.00021095,2]
[387107709,1758580253813,-480.0,0.00021095,2]
[387107710,1758580253822,-718.43,0.00021095,2]
[387107711,1758580253831,-480.0,0.00021095,2]
[387107712,1758580253841,-496.78,0.00021095,2]
[387107713,1758580253850,-480.0,0.00021095,2]
[387107714,1758580253859,-828.4,0.00021095,2]
[387107715,1758580253868,-480.0,0.00021095,2]
[387107716,1758580253878,-480.0,0.00021095,2]
[387107717,1758580253887,-480.0,0.00021095,2]
[387107718,1758580253896,-775.4,0.00021095,2]
[387107719,1758580253905,-838.26,0.00021095,2]
[387107720,1758580253914,-1737.25,0.00021095,2]
[387107721,1758580253924,-480.0,0.00021095,2]
[387107722,1758580253933,-480.0,0.00021095,2]
[387107723,1758580253942,-480.0,0.00021095,2]
[387107724,1758580253952,-789.77,0.00021095,2]
[387107725,1758580253962,-743.13,0.00021095,2]
[387107726,1758580253970,-500.58,0.00021095,2]
[387107727,1758580253979,-480.0,0.00021095,2]
[387107728,1758580253988,-480.0,0.00021095,2]
[387107729,1758580253997,-480.0,0.00021095,2]
[387107730,1758580254007,-1014.46,0.00021095,2]
[387107731,1758580254017,-276.78883637,0.00021096,2]
[387107732,1758580254027,-151.0,0.00021096,2]
[387107733,1758580254036,-250.0,0.00021177,2]
[387107734,1758580254045,-250.0,0.00021211,2]
[387107735,1758580254055,-154.040103,0.00021226,3]
[387107736,1758580254064,-500.0,0.00021344,2]
[387107737,1758580254073,-500.0,0.00021344,2]
[387107738,1758580254082,-411.74851658,0.00021344,2]
[387107739,1758580254091,-500.0,0.00021344,2]
[387107740,1758580254100,-293.81453449,0.00021344,2]
[387107741,1758580254109,-568.98373301,0.00021344,2]
[387107742,1758580254118,-500.0,0.00021344,2]
[387107743,1758580254127,-500.0,0.00021344,2]
[387107744,1758580254136,-203.00773703,0.00021344,2]
[387107745,1758580254144,-500.0,0.00021344,2]
[387107746,1758580254154,-500.0,0.00021344,2]
[387107747,1758580254167,-500.0,0.00021344,2]
[387107748,1758580254176,-500.0,0.00021344,2]
[387107749,1758580254185,-500.0,0.00021344,2]
[387107750,1758580254193,-500.0,0.00021344,2]
[387107751,1758580254203,-500.0,0.00021344,2]
[387107752,1758580254212,-500.0,0.00021344,2]
[387107753,1758580254221,-500.0,0.00021344,2]
[387107754,1758580254230,-500.0,0.00021344,2]
[387107755,1758580254240,-440.0,0.00021349,2]
[387107756,1758580254249,-536.44,0.00021369,2]
[387107757,1758580254258,-6296.56,0.00021369,2]
[387107758,1758580254266,-480.0,0.00021369,2]
[387107759,1758580254275,-480.0,0.00021369,2]
[387107760,1758580254284,-3417.59,0.00021369,2]
[387107761,1758580254293,-687.18,0.00021369,2]
[387107762,1758580254302,-1262.19,0.00021369,2]
[387107763,1758580254311,-868.22,0.00021369,2]
[387107764,1758580254393,-447.26994467,0.00021369,2]
[387107765,1758580254402,-1666.86,0.00021369,2]
[387107766,1758580254411,-558.4,0.00021369,2]
[387107767,1758580254420,-358.1,0.00021369,2]
[387107768,1758580254429,-480.0,0.00021369,2]
[387107769,1758580254439,-480.0,0.00021369,2]
[387107770,1758580254448,-480.0,0.00021369,2]
[387107771,1758580254457,-718.43,0.00021369,2]
[387107772,1758580254465,-450.62214886,0.00021369,2]
[387107773,1758580254474,-496.78,0.00021369,2]
[387107774,1758580254483,-480.0,0.00021369,2]
[387107775,1758580254493,-828.4,0.00021369,2]
[387107776,1758580254502,-480.0,0.00021369,2]
[387107777,1758580254511,-480.0,0.00021369,2]
[387107778,1758580254520,-480.0,0.00021369,2]
[387107779,1758580254530,-775.4,0.00021369,2]
[387107780,1758580254539,-838.26,0.00021369,2]
[387107781,1758580254548,-1737.25,0.00021369,2]
[387107782,1758580254558,-480.0,0.00021369,2]
[387107783,1758580254568,-480.0,0.00021369,2]
[387107784,1758580254577,-480.0,0.00021369,2]
[387107785,1758580254587,-789.77,0.00021369,2]
[387107786,1758580254596,-743.13,0.00021369,2]
[387107787,1758580254605,-480.0,0.00021369,2]
[387107788,1758580254615,-500.58,0.00021369,2]
[387107789,1758580254624,-480.0,0.00021369,2]
[387107790,1758580254634,-480.0,0.00021369,2]
[387107791,1758580254643,-1014.46,0.00021369,2]
[387107792,1758580254652,-293.06295269,0.0002137,2]
[387107793,1758580254661,-500.0,0.00021378,2]
[387107794,1758580254671,-500.0,0.00021378,2]
[387107795,1758580254680,-500.0,0.00021378,2]
[387107796,1758580254689,-500.0,0.00021378,2]
[387107797,1758580254698,-500.0,0.00021378,2]
[387107798,1758580254709,-500.0,0.00021378,2]
[387107799,1758580254718,-500.36744637,0.00021378,2]
[387107800,1758580254728,-500.0,0.00021378,2]
[387107801,1758580254738,-500.0,0.00021378,2]
[387107802,1758580254748,-500.0,0.00021378,2]
[387107803,1758580254757,-484.8258088,0.00021378,2]
[387107804,1758580254767,-500.0,0.00021378,2]
[387107805,1758580254776,-500.0,0.00021378,2]
[387107806,1758580254786,-500.0,0.00021378,2]
[387107807,1758580254796,-500.0,0.00021378,2]
[387107808,1758580254805,-500.0,0.00021378,2]
[387107809,1758580254815,-500.0,0.00021378,2]
[387107810,1758580254824,-501.09363103,0.00021378,2]
[387107811,1758580254833,-340.65768671,0.00021378,2]
[387107812,1758580254843,-500.0,0.000215,2]
[387107813,1758580254852,-500.0,0.000215,2]
[387107814,1758580254861,-500.0,0.000215,2]
[387107815,1758580254871,-3051.64146281,0.00021544,2]
[387107816,1758580254880,-160.0,0.00021584,2]
[387107817,1758580254890,-160.0,0.00021584,2]
[387107818,1758580254899,-160.0,0.00021584,2]
[387107819,1758580254908,-417.15472785,0.00021584,2]
[387107820,1758580254917,-233.55588323,0.00021584,2]
[387107821,1758580254927,-9985.40130503,0.00021584,2]
[387107822,1758580254936,-160.0,0.00021584,2]
[387107823,1758580254945,-160.0,0.00021584,2]
[387107824,1758580254955,-500.0,0.00021623,2]
[387107825,1758580254963,-575.25942439,0.00021625,2]
[387107826,1758580254973,-500.0,0.00021625,2]
[387107827,1758580254982,-500.0,0.00021625,2]
[387107828,1758580254991,-500.0,0.00021625,2]
[387107829,1758580255000,-500.0,0.00021625,2]
[387107830,1758580255009,-500.0,0.00021625,2]
[387107831,1758580255019,-500.0,0.00021625,2]
[387107832,1758580255028,-536.44,0.00021643,2]
[387107833,1758580255038,-6296.56,0.00021643,2]
[387107834,1758580255047,-228.4,0.00021643,2]
[387107835,1758580255056,-480.0,0.00021643,2]
[387107836,1758580255066,-3417.59,0.00021643,2]
[387107837,1758580255075,-687.18,0.00021643,2]
[387107838,1758580255084,-1262.19,0.00021643,2]
[387107839,1758580255095,-868.22,0.00021643,2]
[387107840,1758580255104,-1666.86,0.00021643,2]
[387107841,1758580255113,-558.4,0.00021643,2]
[387107842,1758580255123,-480.0,0.00021643,2]
[387107843,1758580255132,-480.0,0.00021643,2]
[387107844,1758580255141,-718.43,0.00021643,2]
[387107845,1758580255151,-496.78,0.00021643,2]
[387107846,1758580255163,-480.0,0.00021643,2]
[387107847,1758580255173,-828.4,0.00021643,2]
[387107848,1758580255182,-480.0,0.00021643,2]
[387107849,1758580255191,-480.0,0.00021643,2]
[387107850,1758580255200,-480.0,0.00021643,2]
[387107851,1758580255209,-775.4,0.00021643,2]
[387107852,1758580255218,-838.26,0.00021643,2]
[387107853,1758580255228,-1737.25,0.00021643,2]
[387107854,1758580255237,-480.0,0.00021643,2]
[387107855,1758580255246,-480.0,0.00021643,2]
[387107856,1758580255256,-531.75,0.00021643,2]
[387107857,1758580255265,-789.77,0.00021643,2]
[387107858,1758580255275,-743.13,0.00021643,2]
[387107859,1758580255284,-480.0,0.00021643,2]
[387107860,1758580255294,-500.58,0.00021643,2]
[387107861,1758580255304,-480.0,0.00021643,2]
[387107862,1758580255313,-480.0,0.00021643,2]
[387107863,1758580255322,-1014.46,0.00021643,2]
[387107864,1758580255331,-556.48950792,0.00021661,2]
[387107865,1758580255341,-500.0,0.00021671,2]
[387107866,1758580255350,-500.0,0.00021671,2]
[387107867,1758580255359,-500.0,0.00021671,2]
[387107868,1758580255368,-500.0,0.00021674,2]
[387107869,1758580255378,-500.0,0.00021674,2]
[387107870,1758580255387,-601.08284645,0.00021674,2]
[387107871,1758580255396,-500.0,0.00021674,2]
[387107872,1758580255406,-500.0,0.00021674,2]
[387107873,1758580255415,-500.0,0.00021674,2]
[387107874,1758580255424,-500.0,0.00021674,2]
[387107875,1758580255434,-500.0,0.00021674,2]
[387107876,1758580255443,-500.23154824,0.00021753,2]
[387107877,1758580255453,-500.0,0.00021753,2]
[387107878,1758580255462,-585.8651041,0.00021753,2]
[387107879,1758580255471,-585.8651041,0.00021753,2]
[387107880,1758580255480,-223.9073036,0.00021753,2]
[387107881,1758580255490,-151.0,0.000218,4]
[387107882,1758580255499,-270.37203795,0.00021852,2]
[387107883,1758580255509,-585.8651041,0.00021853,2]
[387107884,1758580255518,-585.8651041,0.00021853,2]
[387107885,1758580255527,-1003.94153345,0.00021892,2]
[387107886,1758580255537,-1000.0,0.00021892,2]
[387107887,1758580255547,-503.02754244,0.00021892,2]
[387107888,1758580255557,-380.73686799,0.00021892,2]
[387107889,1758580255567,-509.6002458,0.00021892,2]
[387107890,1758580255576,-1000.0,0.00021892,2]
[387107891,1758580255586,-1000.0,0.00021892,2]
[387107892,1758580255595,-536.44,0.00021917,2]
[387107893,1758580255604,-6296.56,0.00021917,2]
[387107894,1758580255614,-480.0,0.00021917,2]
[387107895,1758580255623,-3417.59,0.00021917,2]
[387107896,1758580255632,-687.18,0.00021917,2]
[387107897,1758580255643,-1262.19,0.00021917,2]
[387107898,1758580255653,-868.22,0.00021917,2]
[387107899,1758580255663,-1666.86,0.00021917,2]
[387107900,1758580255672,-558.4,0.00021917,2]
[387107901,1758580255681,-487.83,0.00021917,2]
[387107902,1758580255690,-480.0,0.00021917,2]
[387107903,1758580255699,-718.43,0.00021917,2]
[387107904,1758580255709,-500.0,0.00021917,2]
[387107905,1758580255718,-500.0,0.00021917,2]
[387107906,1758580255727,-500.0,0.00021917,2]
[387107907,1758580255736,-500.0,0.00021917,2]
[387107908,1758580255745,-500.0,0.00021917,2]
[387107909,1758580255755,-500.0,0.00021917,2]
[387107910,1758580255764,-500.0,0.00021917,2]
[387107911,1758580255773,-500.0,0.00021917,2]
[387107912,1758580255784,-500.0,0.00021917,2]
[387107913,1758580255794,-610.69894451,0.00021917,2]
[387107914,1758580255803,-496.78,0.00021917,2]
[387107915,1758580255813,-480.0,0.00021917,2]
[387107916,1758580255822,-828.4,0.00021917,2]
[387107917,1758580255832,-480.0,0.00021917,2]
[387107918,1758580255913,-480.0,0.00021917,2]
[387107919,1758580255923,-480.0,0.00021917,2]
[387107920,1758580255933,-775.4,0.00021917,2]
[387107921,1758580255942,-838.26,0.00021917,2]
[387107922,1758580255953,-1737.25,0.00021917,2]
[387107923,1758580255963,-480.0,0.00021917,2]
[387107924,1758580255972,-480.0,0.00021917,2]
[387107925,1758580255982,-789.77,0.00021917,2]
[387107926,1758580255991,-743.13,0.00021917,2]
[387107927,1758580256001,-480.0,0.00021917,2]
[387107928,1758580256010,-500.58,0.00021917,2]
[387107929,1758580256021,-480.0,0.00021917,2]
[387107930,1758580256030,-480.0,0.00021917,2]
[387107931,1758580256040,-1014.46,0.00021917,2]
[387107932,1758580256050,-151.0,0.00021918,2]
[387107933,1758580256060,-151.0,0.00021918,2]
[387107934,1758580256071,-151.0,0.00021918,2]
[387107935,1758580256081,-206.604516,0.00021918,2]
[387107936,1758580256090,-174.17789646,0.00021918,2]
[387107937,1758580256100,-151.0,0.00021918,2]
[387107938,1758580256109,-151.0,0.00021918,2]
[387107939,1758580256118,-151.0,0.00021918,2]
[387107940,1758580256128,-151.0,0.00021918,2]
[387107941,1758580256138,-151.0,0.00021918,2]
[387107942,1758580256148,-151.0,0.00021918,2]
[387107943,1758580256158,-151.0,0.00021918,2]
[387107944,1758580256171,-151.0,0.00021918,2]
[387107945,1758580256182,-151.0,0.00021918,2]
[387107946,1758580256192,-151.0,0.00021918,2]
[387107947,1758580256203,-151.0,0.00021918,2]
[387107948,1758580256212,-151.0,0.00021918,2]
[387107949,1758580256222,-151.0,0.00021918,2]
[387107950,1758580256233,-151.0,0.00021918,2]
[387107951,1758580256242,-151.0,0.00021918,2]
[387107952,1758580256253,-151.0,0.00021918,2]
[387107953,1758580256263,-151.0,0.00021918,2]
[387107954,1758580256274,-151.0,0.00021918,2]
[387107955,1758580256283,-151.0,0.00021918,2]
[387107956,1758580256295,-151.0,0.00021918,2]
[387107957,1758580256307,-151.0,0.00021918,2]
[387107958,1758580256317,-151.0,0.00021918,2]
[387107959,1758580256326,-151.0,0.00021918,2]
[387107960,1758580256336,-151.0,0.00021918,2]
[387107961,1758580256345,-151.0,0.00021918,2]
[387107962,1758580256355,-151.0,0.00021918,2]
[387107963,1758580256364,-151.0,0.00021918,2]
[387107964,1758580256374,-151.0,0.00021918,2]
[387107965,1758580256384,-151.0,0.00021918,2]
[387107966,1758580256394,-151.0,0.00021918,2]
[387107967,1758580256404,-151.0,0.00021918,2]
[387107968,1758580256414,-151.0,0.00021918,2]
[387107969,1758580256424,-151.0,0.00021918,2]
[387107970,1758580256435,-151.0,0.00021918,2]
[387107971,1758580256444,-151.0,0.00021918,2]
[387107972,1758580256453,-151.0,0.00021918,2]
[387107973,1758580256462,-151.0,0.00021918,2]
[387107974,1758580256471,-151.0,0.00021918,2]
[387107975,1758580256481,-151.0,0.00021918,2]
[387107976,1758580256491,-262.55798698,0.00021918,2]
[387107977,1758580256501,-151.0,0.00021918,2]
[387107978,1758580256510,-151.0,0.00021918,2]
[387107979,1758580256519,-151.0,0.00021918,2]
[387107980,1758580256529,-151.0,0.00021918,2]
[387107981,1758580256538,-151.0,0.00021918,2]
[387107982,1758580256547,-151.0,0.00021918,2]
[387107983,1758580256558,-151.0,0.00021918,2]
[387107984,1758580256571,-151.0,0.00021918,2]
[387107985,1758580256581,-151.0,0.00021918,2]
[387107986,1758580256590,-151.0,0.00021918,2]
[387107987,1758580256602,-151.0,0.00021918,2]
[387107988,1758580256617,-151.0,0.00021918,2]